bitfinex/quotes_ETHUSD_20241223
["timestamp","ask_amount","ask_price","bid_price","bid_amount"]
[1734973511467,2.96893,3368.3,3367.2,0.0205]
[1734973511668,0.03711259,3368.2,3367.2,0.0205]
[1734973511869,0.03711259,3368.2,3366.2,2.97068]
[1734973511870,3.0,3368.2,3366.8,0.0193]
[1734973512054,2.96929,3367.8,3366.4,0.0193]
[1734973512254,6.51956,3367.5,3366.4,0.0193]
[1734973512482,3.0371255,3367.7,3366.4,0.0193]
[1734973512483,0.55,3367.3,3366.4,0.0193]
[1734973512683,2.96991,3367.1,3365.8,0.0193]
[1734973512886,2.97054,3366.4,3365.7,0.33344797]
[1734973513107,3.03713412,3367.1,3365.7,0.33344797]
[1734973513411,2.97064,3366.3,3365.7,0.33344797]
[1734973513569,2.97024,3366.8,3365.7,0.33344797]
[1734973513769,2.97051,3366.5,3365.7,0.33344797]
[1734973513999,2.97096,3366.0,3365.7,0.33344797]
[1734973514306,2.97097,3365.9,3365.7,0.33344797]
[1734973514716,5.97106,3365.8,3365.7,0.33344797]
[1734973515216,1.4371,3366.3,3365.7,0.33344797]
[1734973515380,2.97095,3366.0,3365.7,0.33344797]
[1734973515572,2.97106,3365.8,3365.7,0.33344797]
[1734973515872,3.0,3366.4,3365.7,0.33344797]
[1734973516103,5.97106,3365.8,3365.7,0.33344797]
[1734973516540,2.97141,3365.4,3365.3,0.3783879]
[1734973516870,2.97141,3365.4,3365.0,0.1]
[1734973516871,7.90507,3365.1,3365.0,7.9e-06]
[1734973516986,6.52212,3364.6,3364.5,3.85e-06]
[1734973517581,7.92482,3364.6,3362.7,0.87423399]
[1734973517781,2.97282,3363.8,3362.7,0.87423399]
[1734973518044,7.90352,3363.8,3362.7,0.87423399]
[1734973518332,7.90352,3363.8,3363.7,5.32e-06]
[1734973518538,2.97363,3362.9,3362.7,0.87423399]
[1734973518685,3.0,3362.8,3362.7,0.87423399]
[1734973519086,5.97341,3363.2,3362.7,0.87423399]
[1734973519288,2.97365,3362.9,3362.7,0.87423399]
[1734973519534,3.55,3362.8,3362.7,0.87423399]
[1734973519885,4.9693,3362.8,3362.7,0.87423399]
[1734973520244,4.9693,3362.8,3362.7,3.99e-06]
[1734973520399,4.4193,3361.7,3361.6,0.89426266]
[1734973520627,4.4193,3361.7,3361.6,2.66e-06]
[1734973520628,7.35614,3361.7,3361.6,2.66e-06]
[1734973520785,9.871068,3361.7,3361.6,2.66e-06]
[1734973520979,4.9693,3361.7,3361.6,2.66e-06]
[1734973521424,5.00649236,3361.7,3361.6,2.66e-06]
[1734973522086,5.50031808,3361.7,3361.6,2.66e-06]
[1734973522435,5.50031808,3361.7,3361.2,0.1699293]
[1734973522436,2.97503,3361.3,3361.2,0.1699293]
[1734973522778,6.52503,3361.3,3361.2,0.1699293]
[1734973522985,5.97503,3361.3,3361.2,0.1699293]
[1734973523223,0.55,3362.4,3361.2,0.1699293]
[1734973523386,2.97496,3361.4,3361.2,0.1699293]
[1734973523599,0.55,3361.3,3361.2,0.1699293]
[1734973523821,2.9736,3363.0,3361.2,0.1699293]
[1734973524142,2.97398,3362.5,3361.2,0.1699293]
[1734973524450,0.03703216,3362.9,3361.3,0.64786993]
[1734973524582,0.03703216,3362.9,3361.2,0.1699293]
[1734973524917,2.97401,3362.5,3361.2,3.1450493]
[1734973525323,1.4944,3363.1,3361.2,3.1450493]
[1734973525324,0.03718025,3362.4,3361.2,0.1699293]
[1734973525643,2.97499,3361.4,3361.2,0.1699293]
[1734973525845,1.4944,3362.3,3361.2,0.1699293]
[1734973526048,2.97433,3362.1,3361.2,0.1699293]
[1734973526185,3.52433,3362.1,3361.2,0.1699293]
[1734973526387,2.97431,3362.2,3361.2,0.1699293]
[1734973526637,2.9748,3361.6,3361.2,0.1699293]
[1734973526790,0.55,3362.0,3361.2,0.1699293]
[1734973527138,2.97411,3362.4,3361.3,0.3335]
[1734973527443,3.01140372,3362.3,3361.3,0.3335]
[1734973527736,3.01140372,3362.3,3361.2,0.1699293]
[1734973527737,2.97471,3361.7,3361.2,0.1699293]
[1734973527883,3.0,3361.8,3361.2,0.1699293]
[1734973528086,2.97457,3361.9,3361.2,0.1699293]
[1734973528634,2.97415,3362.3,3361.2,0.1699293]
[1734973528833,0.55,3362.2,3361.2,0.1699293]
[1734973529033,2.97463,3361.8,3361.2,0.1699293]
[1734973529233,3.0,3362.3,3361.2,0.1699293]
[1734973529472,3.0,3362.2,3361.2,0.1699293]
[1734973529662,2.97425,3362.2,3361.2,0.1699293]
[1734973530162,1.4385,3363.0,3361.2,0.1699293]
[1734973530339,2.97408,3362.4,3361.3,0.3335]
[1734973530537,0.44497,3363.2,3361.4,0.34786393]
[1734973530741,2.97363,3362.9,3361.5,2.97478]
[1734973530949,1.3895,3363.5,3361.3,0.3335]
[1734973531259,0.03717466,3363.4,3361.9,0.3335]
[1734973531464,2.97353,3363.0,3361.9,0.3335]
[1734973531693,2.97366,3362.9,3361.9,0.3335]
[1734973531826,2.97373,3362.8,3361.9,0.3335]
[1734973532027,2.97356,3363.0,3362.0,0.07728242]
[1734973532228,2.97356,3363.0,3361.9,0.3335]
[1734973532424,2.97356,3363.0,3362.1,0.08720721]
[1734973532665,2.97327,3363.3,3362.0,0.08725479]
[1734973532666,3.0,3363.3,3362.0,0.08725479]
[1734973532867,5.97328,3363.3,3362.2,0.08714287]
[1734973533028,2.97354,3363.0,3362.1,0.08719045]
[1734973533236,3.0,3363.3,3361.9,3.30796]
[1734973533237,5.97332,3363.3,3361.9,3.30796]
[1734973533550,2.97372,3362.8,3362.0,0.41787766]
[1734973533746,3.0,3363.2,3362.0,0.08708166]
[1734973533936,2.97425,3362.2,3361.9,0.3335]
[1734973534135,0.03717823,3362.1,3361.3,0.3335]
[1734973534330,3.55,3362.8,3361.4,0.08727231]
[1734973534331,2.97415,3362.3,3361.4,0.08727231]
[1734973534530,5.97378,3362.8,3361.4,0.08727231]
[1734973534531,3.0,3362.8,3361.4,0.08727231]
[1734973534731,2.97356,3363.0,3361.4,0.08727231]
[1734973534732,2.97452,3361.9,3361.4,0.08727231]
[1734973534937,2.97464,3361.8,3361.3,0.3335]
[1734973535231,2.97436,3362.1,3361.3,0.3335]
[1734973535470,2.97459,3361.9,3361.2,0.1699293]
[1734973535828,0.03719094,3362.2,3361.3,0.08756564]
[1734973536036,3.597356,3362.7,3361.3,0.08756564]
[1734973536037,3.0,3362.4,3361.3,0.08756564]
[1734973536220,2.97503,3361.3,3361.2,0.1699293]
[1734973537130,3.52503,3361.3,3361.2,0.1699293]
[1734973537331,6.52503,3361.3,3361.2,9.3e-06]
[1734973537485,18.157521,3361.3,3361.2,9.3e-06]
[1734973537681,18.157521,3361.3,3360.6,0.91429134]
[1734973537682,6.52557,3360.7,3360.6,6.4e-07]
[1734973538029,8.865164,3360.7,3360.6,6.4e-07]
[1734973538177,7.36507,3360.7,3360.6,6.4e-07]
[1734973538534,7.91507,3360.7,3360.6,6.4e-07]
[1734973539099,6.52557,3360.7,3360.6,6.4e-07]
[1734973539960,5.97557,3360.7,3360.6,6.4e-07]
[1734973540123,2.97471,3361.7,3360.6,6.4e-07]
[1734973540301,0.03719557,3362.1,3360.7,0.42261445]
[1734973540509,0.48532913,3362.1,3360.7,0.42261445]
[1734973540860,0.48532913,3362.1,3360.7,0.08911445]
[1734973541161,2.97548,3360.8,3360.6,6.4e-07]
[1734973541362,2.97557,3360.7,3360.6,6.4e-07]
[1734973541705,2.9753,3361.0,3360.6,6.4e-07]
[1734973541902,3.0,3360.9,3360.6,6.4e-07]
[1734973542117,3.0,3361.5,3360.6,6.4e-07]
[1734973542357,4.402,3361.6,3360.7,0.08944399]
[1734973542671,2.97547,3360.9,3360.6,6.4e-07]
[1734973542835,1.402,3361.6,3360.6,6.4e-07]
[1734973543037,1.402,3362.2,3360.6,6.4e-07]
[1734973543274,0.25,3363.2,3360.6,6.4e-07]
[1734973543275,2.97388,3362.7,3360.9,2.9753]
[1734973543437,4.37539,3363.2,3360.8,3.26045]
[1734973543438,2.97397,3362.5,3360.8,3.26045]
[1734973543752,0.0371892,3362.4,3360.9,0.41528199]
[1734973543953,0.0371892,3362.4,3360.9,0.08923693]
[1734973544174,4.37638,3362.1,3360.9,0.08923693]
[1734973544374,0.03719212,3362.0,3360.8,0.285]
[1734973544578,2.97427,3362.2,3360.8,0.285]
[1734973544789,0.03718778,3362.5,3360.8,0.285]
[1734973545075,2.97505,3361.3,3360.8,0.285]
[1734973545382,2.97501,3361.4,3360.9,0.08890159]
[1734973545522,0.03718956,3362.1,3360.9,0.08890159]
[1734973545860,2.97505,3361.3,3360.8,0.285]
[1734973546082,0.55,3362.0,3360.8,0.285]
[1734973546236,2.9746,3361.8,3360.9,0.08890159]
[1734973546565,2.9746,3361.8,3360.9,0.42385581]
[1734973546857,2.97444,3362.0,3360.9,3.39922581]
[1734973547160,2.97406,3362.5,3360.9,0.08890159]
[1734973547161,2.97495,3361.4,3360.9,0.08890159]
[1734973547315,2.97479,3361.6,3360.6,6.4e-07]
[1734973547520,0.03719054,3361.5,3360.7,0.08899683]
[1734973547764,3.0,3361.3,3360.7,0.08899683]
[1734973547925,3.0,3361.3,3360.6,0.28500064]
[1734973548125,0.03719619,3361.6,3360.6,0.28500064]
[1734973548358,5.97557,3360.7,3360.6,6.4e-07]
[1734973548964,6.52557,3360.7,3360.6,6.4e-07]
[1734973549171,7.475664,3360.7,3360.6,6.4e-07]
[1734973549326,6.52557,3360.7,3360.6,6.4e-07]
[1734973549836,5.97557,3360.7,3360.6,6.4e-07]
[1734973550235,4.42842,3361.9,3360.6,6.4e-07]
[1734973550236,1.4539,3361.9,3360.6,6.4e-07]
[1734973550422,3.0,3361.2,3360.6,6.4e-07]
[1734973550718,2.97525,3361.1,3360.6,6.4e-07]
[1734973551330,0.03719753,3361.5,3360.6,6.4e-07]
[1734973551535,2.97531,3361.0,3360.6,6.4e-07]
[1734973551753,2.9754,3360.9,3360.6,6.4e-07]
[1734973552020,2.9124692,3360.9,3360.6,6.4e-07]
[1734973553457,0.03719755,3360.9,3360.6,6.4e-07]
[1734973553663,0.55,3360.8,3360.6,6.4e-07]
[1734973553862,3.91902772,3360.7,3360.6,6.4e-07]
[1734973554022,6.91902772,3360.7,3360.6,6.4e-07]
[1734973554371,6.88182476,3360.7,3360.6,6.4e-07]
[1734973556053,5.97557,3360.7,3360.6,6.4e-07]
[1734973556486,3.0,3360.7,3360.6,6.4e-07]
[1734973556673,3.03720095,3361.2,3360.6,6.4e-07]
[1734973556991,2.97516,3361.2,3360.6,6.4e-07]
[1734973557288,2.97557,3360.7,3360.6,6.4e-07]
[1734973558186,6.52557,3360.7,3360.6,6.4e-07]
[1734973558694,3.52557,3360.7,3360.6,6.4e-07]
[1734973559192,2.97557,3360.7,3360.6,6.4e-07]
[1734973559388,3.52557,3360.7,3360.6,6.4e-07]
[1734973559909,2.97557,3360.7,3360.6,6.4e-07]
[1734973560057,3.52557,3360.7,3360.6,6.4e-07]
[1734973560253,7.21658379,3360.7,3360.6,6.4e-07]
[1734973560456,7.17938102,3360.7,3360.6,6.4e-07]
[1734973560652,6.52557,3360.7,3360.6,6.4e-07]
[1734973560890,5.97557,3360.7,3360.6,6.4e-07]
[1734973561063,0.55,3360.8,3360.6,6.4e-07]
[1734973561266,6.56277113,3360.7,3360.6,6.4e-07]
[1734973561486,6.52557,3360.7,3360.6,6.4e-07]
[1734973561951,8.928258,3360.7,3360.6,6.4e-07]
[1734973562956,5.97557,3360.7,3360.6,6.4e-07]
[1734973563467,3.0,3360.7,3360.6,6.4e-07]
[1734973563683,3.0,3360.8,3360.6,6.4e-07]
[1734973563998,3.0,3360.8,3360.7,0.09010381]
[1734973564355,3.0,3361.2,3360.6,6.4e-07]
[1734973564598,2.97552,3360.8,3360.6,6.4e-07]
[1734973564894,1.23904016,3361.5,3360.6,6.4e-07]
[1734973565093,1.23904016,3361.5,3360.7,3.26049]
[1734973565265,1.23904016,3361.5,3360.7,0.37481862]
[1734973565466,1.23904016,3361.5,3360.7,0.70987248]
[1734973565666,1.48904016,3361.5,3360.7,0.37481862]
[1734973565867,0.25,3361.3,3360.7,0.285]
[1734973566096,0.25,3361.1,3360.7,0.285]
[1734973566256,0.25,3361.3,3360.7,0.285]
[1734973566465,0.25,3361.1,3360.8,0.0894356]
[1734973566822,1.48904016,3361.5,3360.9,0.08938798]
[1734973566956,3.25,3361.7,3360.9,0.08938798]
[1734973567160,3.2247,3361.7,3361.0,0.3349858]
[1734973567364,0.25,3361.2,3361.1,0.08922009]
[1734973567561,3.22488,3361.5,3360.7,0.285]
[1734973567806,3.0,3361.6,3360.8,0.08936295]
[1734973568004,3.2247,3361.7,3360.8,0.08936295]
[1734973568005,0.25,3361.7,3360.8,0.08936295]
[1734973568158,0.25,3362.0,3360.9,0.285]
[1734973568379,0.25,3362.0,3361.0,0.08926771]
[1734973568593,0.25,3362.0,3361.1,0.33496277]
[1734973569020,1.23904016,3362.4,3361.5,2.97485]
[1734973569159,0.25,3362.1,3361.3,0.285]
[1734973569362,2.97436,3362.1,3361.3,0.285]
[1734973569594,3.22436,3362.1,3361.4,0.08907727]
[1734973569922,0.0371766,3362.3,3361.4,0.08907727]
[1734973569923,0.25,3362.3,3361.4,0.08907727]
[1734973570071,1.23904016,3362.7,3361.4,0.08907727]
[1734973570072,0.25,3362.5,3361.4,0.08907727]
[1734973570405,0.25,3362.5,3361.5,3.06384966]
[1734973570583,0.25,3362.5,3361.6,0.33488497]
[1734973570780,0.25,3362.5,3361.7,0.08893446]
[1734973570995,3.22398,3362.5,3361.7,0.08893446]
[1734973571394,0.25,3362.5,3361.3,0.285]
[1734973571582,0.25,3362.5,3361.9,0.185]
[1734973571802,3.25,3362.5,3361.9,0.185]
[1734973572183,2.97431,3362.2,3362.0,0.08879169]
[1734973572515,3.22402,3362.5,3361.9,0.185]
[1734973572708,2.97371,3362.8,3361.9,0.185]
[1734973572907,4.21233016,3363.3,3362.0,0.315958]
[1734973572908,4.46232016,3363.3,3362.0,0.315958]
[1734973573109,0.25,3363.1,3362.0,0.40474969]
[1734973573405,0.28717063,3363.1,3362.0,0.40474969]
[1734973573613,3.22347,3363.1,3362.0,0.08879169]
[1734973573805,3.22347,3363.1,3362.0,2.97441]
[1734973574181,3.0,3363.0,3362.1,0.0887441]
[1734973574385,1.23904016,3363.3,3362.2,0.185]
[1734973574610,1.23904016,3363.9,3363.3,2.97322]
[1734973574814,1.23904016,3363.9,3363.4,0.185]
[1734973574969,1.23904016,3363.9,3363.5,2.97308]
[1734973575175,1.23904016,3363.9,3363.6,0.08654974]
[1734973575372,1.23904016,3363.9,3363.4,0.185]
[1734973575824,1.23904016,3363.9,3363.8,2.97282]
[1734973576043,1.23904016,3363.9,3363.4,0.185]
[1734973576316,4.38345,3363.4,3361.7,0.185]
[1734973576473,0.25,3363.1,3361.7,3.15968]
[1734973576674,1.4102,3364.0,3361.7,0.185]
[1734973576908,2.97306,3363.6,3362.3,2.97412]
[1734973577125,4.42003152,3364.0,3362.0,2.9744]
[1734973577126,1.4102,3364.0,3362.1,0.185]
[1734973577296,0.25,3363.9,3362.5,2.97396]
[1734973577498,2.97292,3363.7,3362.6,2.97386]
[1734973577703,0.25,3363.7,3363.0,0.185]
[1734973578011,2.97336,3363.2,3361.7,2.97461]
[1734973578216,2.97336,3363.2,3362.1,2.97431]
[1734973578581,2.97364,3362.9,3361.8,3.76909974]
[1734973578919,2.97297,3363.7,3361.9,0.185]
[1734973578920,0.25,3363.7,3361.9,0.185]
[1734973579084,4.6769,3363.9,3362.0,2.97441]
[1734973579280,3.0,3363.6,3362.1,0.185]
[1734973579510,2.973,3363.6,3362.4,2.97397]
[1734973579692,2.9731,3363.5,3362.4,2.97397]
[1734973579893,0.25,3363.7,3362.2,0.315941]
[1734973580183,4.4269,3363.9,3362.8,0.185]
[1734973580386,0.25,3363.7,3362.8,0.185]
[1734973580594,2.97301,3363.6,3362.8,0.185]
[1734973581003,0.622301,3363.6,3362.4,0.185]
[1734973581211,2.97366,3362.9,3362.4,0.185]
[1734973581418,0.25,3363.1,3361.9,0.185]
[1734973581685,0.25,3362.5,3361.5,0.185]
[1734973581885,2.97433,3362.1,3362.0,0.08316804]
[1734973582083,3.0,3361.7,3360.7,1.75403062]
[1734973582286,0.25,3361.7,3360.7,1.75403062]
[1734973582522,2.9753,3361.0,3360.9,0.08370842]
[1734973582732,2.9753,3361.0,3360.7,1.75403062]
[1734973582924,2.9753,3361.0,3360.9,0.08409361]
[1734973583127,0.25,3361.6,3360.9,0.08409361]
[1734973583283,0.25,3361.4,3360.9,0.3007478]
[1734973583484,3.0,3361.5,3361.0,0.08466039]
[1734973583485,2.97486,3361.5,3361.0,0.08466039]
[1734973583682,2.97486,3361.5,3360.4,2.97577]
[1734973583890,2.97486,3361.5,3361.1,0.08461278]
[1734973584115,2.97486,3361.5,3360.4,2.97577]
[1734973584299,0.25,3361.5,3361.2,0.08456517]
[1734973584498,0.25,3361.5,3360.4,2.97579]
[1734973584499,3.22486,3361.5,3360.4,2.97579]
[1734973584725,2.97448,3362.0,3360.6,0.185]
[1734973584928,3.0,3361.9,3360.6,0.185]
[1734973585230,0.25,3362.4,3361.1,0.185]
[1734973585430,2.97415,3362.3,3361.1,0.185]
[1734973585616,0.03718002,3362.8,3361.1,0.185]
[1734973585617,0.25,3361.8,3361.2,0.08527461]
[1734973585790,3.2246,3361.8,3361.2,0.08527461]
[1734973585987,1.3572,3362.9,3361.2,0.08527461]
[1734973585988,0.25,3361.6,3361.2,0.08527461]
[1734973586191,2.9747,3361.7,3361.2,0.08527461]
[1734973586432,7.58223,3361.3,3361.2,0.08527461]
[1734973586627,2.97625,3360.0,3359.6,0.93432001]
[1734973586931,0.25,3360.1,3359.6,0.93432001]
[1734973587102,4.33306,3360.4,3359.6,0.93432001]
[1734973587103,0.25,3360.3,3359.6,0.93432001]
[1734973587427,0.25,3360.1,3359.6,0.93432001]
[1734973588230,0.25,3359.9,3359.6,0.93432001]
[1734973588433,3.22645,3359.7,3359.6,0.93432001]
[1734973588635,7.56785,3359.7,3359.6,0.93432001]
[1734973589346,6.22645,3359.7,3359.6,0.93432001]
[1734973589502,6.88770479,3359.7,3359.6,0.93432001]
[1734973590023,6.88770479,3359.7,3359.6,1e-08]
[1734973590226,6.88770479,3359.7,3358.6,0.95434868]
[1734973590227,8.34530479,3359.7,3358.6,0.95434868]
[1734973590546,7.70281,3359.3,3359.2,7.91e-06]
[1734973590901,7.70281,3359.3,3357.6,0.97437735]
[1734973590902,0.25,3357.7,3357.6,7.35e-06]
[1734973591109,8.14712,3357.7,3357.6,7.35e-06]
[1734973591337,0.25,3357.3,3357.2,7.35e-06]
[1734973591634,3.25,3357.3,3357.2,7.35e-06]
[1734973591806,3.8,3357.3,3357.2,7.35e-06]
[1734973592006,3.83724146,3357.3,3357.2,7.35e-06]
[1734973592214,3.25,3357.3,3357.2,7.35e-06]
[1734973592895,0.25,3357.8,3357.2,7.35e-06]
[1734973593111,0.25,3358.4,3357.2,7.35e-06]
[1734973593310,0.25,3358.1,3357.2,7.35e-06]
[1734973593511,2.9772,3358.9,3357.5,2.97838]
[1734973593742,0.25,3358.6,3357.6,2.97828]
[1734973593938,0.25,3358.3,3357.7,0.297828]
[1734973594097,0.25,3358.3,3357.6,0.07948037]
[1734973594098,0.25,3358.0,3357.6,0.07948037]
[1734973594303,0.25,3358.4,3357.2,7.35e-06]
[1734973594651,0.25,3358.5,3357.2,7.35e-06]
[1734973594939,0.25,3358.8,3357.3,0.07960111]
[1734973595140,0.25,3358.8,3357.9,2.97798]
[1734973595318,0.25,3358.8,3358.0,0.297798]
[1734973595504,0.25,3358.8,3358.0,0.0789087]
[1734973595707,0.25,3358.8,3357.4,0.4152]
[1734973595912,0.25,3358.8,3358.1,0.07865384]
[1734973596113,0.25,3358.4,3357.4,0.4152]
[1734973596346,0.25,3358.4,3358.2,0.07860614]
[1734973596526,0.25,3358.4,3357.4,0.4152]
[1734973596862,0.25,3358.5,3357.5,3.69668761]
[1734973597360,0.25,3358.3,3357.5,0.71830761]
[1734973597720,0.25,3358.6,3357.5,0.71830761]
[1734973597920,0.25,3358.5,3357.5,0.07892888]
[1734973598163,0.25,3358.3,3357.5,0.07892888]
[1734973598529,0.25,3357.8,3357.5,0.07892888]
[1734973598871,0.25,3358.1,3357.2,7.35e-06]
[1734973599030,0.25,3358.1,3357.6,0.07883079]
[1734973599229,0.25,3358.0,3357.2,7.35e-06]
[1734973599424,4.65409,3355.6,3355.5,4.7e-06]
[1734973599627,0.25,3355.6,3355.5,4.7e-06]
[1734973600266,3.25,3355.6,3355.5,4.7e-06]
[1734973600470,6.23009,3355.6,3355.5,4.7e-06]
[1734973600843,3.23009,3355.6,3355.5,4.7e-06]
[1734973601035,0.25,3355.6,3355.5,4.7e-06]
[1734973601584,3.23009,3355.6,3355.5,4.7e-06]
[1734973601894,0.25,3355.6,3355.5,4.7e-06]
[1734973602071,2.97952,3356.3,3355.5,4.7e-06]
[1734973602072,1.3885,3356.8,3355.5,4.7e-06]
[1734973602373,0.25,3355.9,3355.5,4.7e-06]
[1734973602987,0.25,3356.3,3355.5,4.7e-06]
[1734973603271,3.22937,3356.5,3355.5,4.7e-06]
[1734973603431,0.25,3356.2,3355.5,4.7e-06]
[1734973603630,0.25,3355.9,3355.6,0.07011652]
[1734973603877,0.25,3356.2,3355.5,4.7e-06]
[1734973604077,0.25,3356.0,3355.7,0.07006875]
[1734973604282,0.25,3356.0,3355.5,4.7e-06]
[1734973604283,3.22966,3356.1,3355.5,4.7e-06]
[1734973604434,2.97821,3357.8,3355.5,4.7e-06]
[1734973604435,0.25,3356.0,3355.8,0.07002098]
[1734973604633,0.25,3356.0,3355.5,4.7e-06]
[1734973604887,0.25,3356.0,3355.9,0.06997322]
[1734973605031,0.25,3356.0,3355.5,4.7e-06]
[1734973605232,0.25,3356.3,3355.9,0.06997322]
[1734973605427,0.25,3356.5,3355.5,4.7e-06]
[1734973605669,0.25,3356.5,3355.7,2.97995]
[1734973605987,0.25,3356.5,3355.8,0.29799547]
[1734973606141,0.25,3356.1,3355.8,0.36801645]
[1734973606333,0.25,3356.0,3355.8,0.07002098]
[1734973606672,0.25,3356.4,3355.5,2.9801747]
[1734973606868,0.25,3356.4,3355.9,0.06997322]
[1734973607070,0.25,3356.0,3355.5,4.7e-06]
[1734973607233,0.25,3356.2,3355.5,4.7e-06]
[1734973607430,0.25,3356.8,3355.5,4.7e-06]
[1734973607655,0.25,3356.5,3355.7,2.97999]
[1734973607970,0.25,3356.5,3355.6,0.4438]
[1734973607971,0.25,3356.4,3355.6,0.4438]
[1734973608272,0.25,3356.6,3355.7,2.98]
[1734973608467,0.25,3356.2,3355.6,0.4438]
[1734973608692,0.25,3356.5,3355.6,0.4438]
[1734973608979,0.25,3356.8,3355.9,2.97981]
[1734973609130,0.25,3356.6,3356.0,0.297981]
[1734973609457,3.0,3358.0,3355.6,0.385254]
[1734973609458,0.25,3356.9,3355.6,0.385254]
[1734973609670,0.25,3356.6,3355.6,0.385254]
[1734973609976,0.25,3356.6,3355.6,3.365324]
[1734973610137,0.25,3356.6,3355.7,0.33653287]
[1734973610334,0.25,3356.6,3355.7,3.31650287]
[1734973611046,0.25,3356.6,3355.7,0.33653287]
[1734973611274,0.25,3356.6,3355.6,0.385254]
[1734973611568,0.25,3356.6,3355.8,2.97989]
[1734973611767,1.4145,3358.0,3356.1,3.55]
[1734973611768,0.25,3357.3,3356.1,3.55]
[1734973612208,2.9783,3357.7,3356.1,3.55]
[1734973612209,0.25,3357.1,3356.1,3.0]
[1734973612358,0.25,3357.1,3355.5,4.7e-06]
[1734973612359,0.25,3356.5,3355.5,0.3852047]
[1734973612568,0.25,3356.6,3355.7,2.97998]
[1734973612868,0.25,3356.4,3355.6,2.98007]
[1734973613089,0.25,3356.6,3355.5,0.3852047]
[1734973613246,0.25,3357.2,3355.7,2.97994]
[1734973613447,0.25,3359.1,3356.4,2.97932]
[1734973613448,0.25,3357.4,3356.4,2.97932]
[1734973613678,5.97841,3357.5,3356.4,2.97932]
[1734973613679,0.25,3357.2,3356.4,2.97932]
[1734973613885,0.25,3357.4,3356.6,2.97919]
[1734973614083,0.25,3357.8,3356.9,0.3852]
[1734973614490,0.25,3358.0,3357.0,0.06903557]
[1734973614784,0.25,3358.4,3357.8,2.97813]
[1734973614984,0.25,3358.0,3357.0,3.06903557]
[1734973615190,0.25,3358.0,3356.9,0.3852]
[1734973615191,0.25,3358.0,3357.9,0.06846125]
[1734973615347,0.25,3358.0,3357.2,3.0]
[1734973615543,0.25,3358.0,3357.1,2.97871]
[1734973615798,0.25,3357.8,3357.3,0.06874752]
[1734973616084,1.88906211,3359.8,3357.4,0.0684157]
[1734973616085,0.25,3358.1,3357.4,0.0684157]
[1734973616291,0.25,3358.1,3357.4,2.97842]
[1734973616591,0.25,3358.1,3357.5,0.36620998]
[1734973617143,0.25,3358.1,3357.5,0.06836798]
[1734973617554,0.25,3358.4,3357.6,2.9783]
[1734973617755,0.25,3358.6,3357.6,0.06817546]
[1734973617970,0.25,3359.1,3358.6,2.97741]
[1734973618186,0.25,3359.4,3358.4,2.97752]
[1734973618455,2.97569,3360.6,3358.4,2.97752]
[1734973618456,0.25,3360.0,3358.8,0.55]
[1734973618685,0.25,3360.0,3358.7,0.3852]
[1734973618893,0.25,3359.5,3358.9,0.06653053]
[1734973619209,0.25,3359.5,3358.9,2.97716]
[1734973619355,1.3624,3360.2,3359.2,2.97689]
[1734973619356,0.25,3359.9,3359.2,2.97689]
[1734973619558,0.25,3359.9,3359.0,0.06648285]
[1734973619559,0.25,3359.2,3359.0,0.06648285]
[1734973619767,0.25,3359.2,3357.5,3.12098737]
[1734973619768,0.25,3358.6,3357.7,0.3852]
[1734973620101,1.681972,3359.2,3357.7,0.3852]
[1734973620102,0.25,3358.5,3357.7,0.3852]
[1734973620391,0.25,3358.4,3357.7,0.3852]
[1734973620897,0.25,3358.2,3357.7,0.3852]
[1734973621194,0.25,3358.2,3357.2,0.55]
[1734973621400,1.681972,3359.2,3357.1,0.3852]
[1734973621401,0.25,3358.8,3357.4,0.55]
[1734973621553,0.25,3358.6,3357.8,2.97813]
[1734973621761,2.9771,3359.0,3357.3,0.36358]
[1734973621762,0.25,3358.2,3357.3,0.36358]
[1734973622012,0.25,3357.8,3357.1,0.3852]
[1734973622295,0.25,3357.8,3356.0,3.12098737]
[1734973622296,2.97823,3357.7,3356.6,3.36439]
[1734973622496,0.25,3357.7,3356.8,2.979]
[1734973622669,0.25,3357.9,3356.6,0.3852]
[1734973622857,0.25,3358.3,3356.6,0.3852]
[1734973623053,0.25,3358.3,3357.5,2.97836]
[1734973623290,0.25,3358.5,3357.5,0.595703]
[1734973623526,0.25,3358.3,3357.6,2.9783]
[1734973623696,0.25,3358.5,3357.6,2.9783]
[1734973623866,0.25,3358.3,3357.6,2.9783]
[1734973624269,0.25,3358.5,3357.5,0.595703]
[1734973624570,0.25,3359.1,3358.1,0.55]
[1734973624773,1.3827,3359.2,3358.1,0.55]
[1734973624972,1.3827,3359.2,3358.5,2.97749]
[1734973625380,1.3827,3359.2,3358.4,2.9776]
[1734973625581,0.25,3359.6,3358.1,3.55]
[1734973625894,0.25,3359.6,3358.3,3.55]
[1734973626282,0.25,3359.6,3358.8,2.97723]
[1734973626478,1.4746,3359.7,3359.0,2.97705]
[1734973626803,1.4746,3359.7,3358.5,2.97747]
[1734973627005,1.4746,3359.7,3358.9,2.97712]
[1734973627205,0.25,3359.6,3358.9,2.97712]
[1734973627807,0.25,3358.8,3357.6,0.3852]
[1734973628005,0.25,3358.8,3357.6,3.3635]
[1734973628006,0.25,3358.6,3357.6,3.3635]
[1734973628512,0.25,3358.6,3357.6,0.3852]
[1734973628708,0.25,3358.4,3357.8,2.97814]
[1734973628913,0.25,3358.4,3357.8,3.314474]
[1734973629069,0.25,3358.1,3357.6,0.3852]
[1734973629276,3.22788,3358.1,3357.0,2.97884]
[1734973629482,3.22788,3358.1,3356.7,0.3852]
[1734973629483,0.25,3358.1,3356.7,0.3852]
[1734973629794,0.25,3358.4,3357.6,2.97827]
[1734973629995,1.5976,3358.8,3357.7,0.683027]